[Event "FRA-ch Teams Top 16-A 2022"]
[Site "Chartres"]
[Date "2022.06.15"]
[Round "7.10"]
[White "Saatdjian, Thomas"]
[Black "Fedorchuk, Sergey A."]
[Result "0-1"]
[ECO "E15"]
[WhiteElo "2271"]
[BlackElo "2606"]
[Annotator "TA"]
[PlyCount "68"]
[EventDate "2022.06.09"]
[EventType "team-tourn"]
[EventCountry "FRA"]
[SourceTitle "playchess.com"]
[Source "ChessBase"]
[SourceQuality "1"]
[TimeControl "40/5400+30:1800+30"]

{[%evp 9,68,14,23,25,45,32,36,33,44,39,35,35,31,37,37,36,36,31,33,12,27,-12,-35,-28,0,0,41,-168,-173,-168,-172,-306,-288,-391,-385,-381,-390,-405,-389,-393,-375,-408,-406,-401,-384,-399,-400,-402,-379,-393,-387,-441,-439,-612,-600,-556,-537,-698,-673,-759,-720]} 1. d4 {[%emt 0:00:03]} Nf6 {[%emt 0:00:11]} 2. c4 {[%emt 0:00:09]} e6 {[%emt 0:00:08]} 3. Nf3 {[%emt 0:00:15]} b6 {[%emt 0:00:25]} 4. g3 {[%emt 0:00:40]} Ba6 {[%emt 0:00:21]} 5. b3 {[%emt 0:01:02]} c6 {[%emt 0:03:43]} 6. Bg2 {[%emt 0:12:04] E15: Queen's Indian: 4 g3 sidelines, 4 g3 Ba6 and 4 g3 Bb7 early deviations.} Bb4+ {[%emt 0:00:56]} 7. Nbd2 {[%emt 0:05:21]} d5 {[%emt 0:01:57]} 8. O-O {[%emt 0:00:15] White is slightly better.} Nbd7 {[%emt 0:00:38] [#]} 9. a3 $146 {[%emt 0:08:54]} ({Predecessor:} 9. e4 O-O 10. e5 Ne8 11. Bb2 Rc8 12. Re1 Nc7 13. a3 Be7 14. cxd5 Nxd5 15. Ne4 c5 16. Nfd2 cxd4 17. Bxd4 Nc5 18. Nxc5 Bxc5 19. Bxc5 Nc3 {½-½ (19) Gelfand,B (2735)-Kovalenko,I (2680) Tallinn 2016}) 9... Be7 {[%emt 0:03:21]} 10. Re1 {[%emt 0:00:12]} Bb7 {[%emt 0:09:09]} 11. e4 {[%emt 0:12:59]} Nxe4 {[%emt 0:03:05]} 12. Nxe4 {[%emt 0:00:05]} dxe4 {[%emt 0:00:10]} 13. Rxe4 {[%emt 0:00:03]} c5 {[%emt 0:00:26]} 14. Re1 {[%emt 0:04:05] With the idea d5.} Bf6 {[%emt 0:06:50]} 15. d5 {[%emt 0:22:42][%cal Od5e6]} Bxa1 {[%emt 0:10:19]} 16. dxe6 {[%emt 0:00:07]} Nf6 {[%emt 0:02:04] ...Qxd1 is the strong threat.} (16... Ne5 $5 17. exf7+ Kf8 $11) 17. exf7+ {[%emt 0:07:30]} Kf8 {[%emt 0:00:09]} (17... Kxf7 $5 {[%cal Rd8d1]} 18. Ng5+ Kg8 19. Bxb7 Qxd1 20. Rxd1 Re8 $11) 18. Bf4 $2 {[%emt 0:00:06] Loses the game.} (18. Bd2 $1 $14 {was forced to keep a grip.}) 18... Qxd1 $19 {[%emt 0:07:22]} (18... Bc3 $2 19. Bd6+ Kxf7 20. Ng5+ Kg8 21. Bxb7 $18) 19. Rxd1 {[%emt 0:00:01] [#] And now Ng5 would win.} Bd4 $1 {[%emt 0:01:20]} 20. Ng5 {[%emt 0:01:31] [#]} (20. Nxd4 {keeps fighting.} Bxg2 21. Ne6+ Kxf7 22. Ng5+ Kg6 23. Kxg2) 20... Rd8 $1 {[%emt 0:00:24]} 21. Bxb7 {[%emt 0:13:13] [#]} (21. Ne6+ Ke7) 21... Bxf2+ $1 {[%emt 0:00:09][%mdl 576] Discovered Attack} 22. Kxf2 {[%emt 0:00:01]} Rxd1 {[%emt 0:00:11]} 23. Ke2 {[%emt 0:00:07]} Rd7 {[%emt 0:00:35]} 24. Bc6 {[%emt 0:00:42]} Re7+ {[%emt 0:02:13]} 25. Kd3 {[%emt 0:00:24]} h6 {[%emt 0:02:09]} 26. Nf3 {[%emt 0:00:05]} Kxf7 {[%emt 0:00:49]} 27. Ne5+ {[%emt 0:00:09]} Ke6 {[%emt 0:00:08]} 28. Ng6 {[%emt 0:00:32]} Rd8+ {[%emt 0:00:34]} 29. Kc2 {[%emt 0:00:50] [#]} Ree8 {[%emt 0:00:42][%cal Oe6f5]} 30. Bxe8 {[%emt 0:00:52]} (30. h3 Rg8) 30... Rxe8 {[%emt 0:00:07] Black is clearly winning.} ({But not} 30... Nxe8 $2 31. h3 $19) 31. Bd2 {[%emt 0:04:11]} Kf5 {[%emt 0:00:24]} 32. Nh4+ {[%emt 0:00:53]} Kg4 {[%emt 0:00:16] aiming for ...g5.} 33. Kd3 {[%emt 0:00:21]} Ne4 {[%emt 0:02:22]} 34. Be3 {[%emt 0:00:22]} g5 {[%emt 0:00:30] Weighted Error Value: White=0.49/Black=0.05 (flawless)} 0-1

[Event "FRA-ch Teams Top 16-A 2022"]
[Site "Chartres"]
[Date "2022.06.15"]
[Round "7.11"]
[White "Edouard, Romain"]
[Black "Sochacki, Wojtek"]
[Result "1/2-1/2"]
[ECO "D02"]
[WhiteElo "2575"]
[BlackElo "2324"]
[Annotator "TA"]
[PlyCount "227"]
[EventDate "2022.06.09"]
[EventType "team-tourn"]
[EventCountry "FRA"]
[SourceTitle "playchess.com"]
[Source "ChessBase"]
[SourceQuality "1"]
[TimeControl "40/5400+30:1800+30"]

{[%evp 42,227,-62,-55,-58,-114,-43,-45,-47,-173,-173,-110,-104,-96,-105,-110,-106,-182,-69,-77,-60,-98,0,0,0,-146,0,0,0,0,0,0,0,0,0,0,0,0,0,0,0,0,0,0,0,0,2,0,0,0,0,0,0,0,0,0,0,0,0,0,0,0,0,0,0,0,0,0,0,0,0,0,0,0,0,0,0,-25,-8,-89,-89,-89,-89,-89,-89,-89,-8,-89,-89,-89,-89,-89,-89,-89,-89,-89,-89,-89,-89,-89,-89,-89,-89,-89,-89,-89,-89,-89,-89,-89,-30,-30,-15,-30,-15,-30,-15,-30,-30,-30,-30,-41,-41,-41,-41,-41,-30,-41,-30,-41,-41,-77,-77,-77,-77,-77,-77,-77,-77,-77,-77,-77,-70,-77,-77,-77,-77,-77,-41,-77,-41,-77,0,-77,-77,-77,-41,-77,0,-77,-41,-77,-77,-77,-41,-41,-41,-78,0,-41,-41,-41,-41,-78,0,-41,-41,-78,-18,-77,-18,-18,-18,-18,-18,-18,-18,-19]} 1. d4 {[%emt 0:05:03]} d5 {[%emt 0:11:12]} 2. Bf4 {[%emt 0:00:08]} Nf6 {[%emt 0:00:54]} 3. e3 {[%emt 0:00:04]} c5 {[%emt 0:00:04]} 4. Nf3 {[%emt 0:00:08]} e6 {[%emt 0:00:07]} 5. Nbd2 {[%emt 0:00:15]} Bd6 {[%emt 0:01:22]} 6. Bg3 {[%emt 0:00:06]} Qc7 {[%emt 0:04:18]} 7. dxc5 {[%emt 0:03:10]} Bxg3 {[%emt 0:02:50]} 8. hxg3 {[%emt 0:00:06]} Qxc5 {[%emt 0:00:06]} 9. c4 {[%emt 0:00:06]} Nc6 {[%emt 0:03:01]} 10. a3 {[%emt 0:00:12]} Qe7 {[%emt 0:15:44]} 11. cxd5 {[%emt 0:02:28]} exd5 {[%emt 0:02:21]} 12. Nb3 {[%emt 0:00:03]} O-O {[%emt 0:03:44]} 13. Be2 {[%emt 0:00:13]} Bg4 {[%emt 0:05:46]} 14. Nfd4 {[%emt 0:01:34]} Nxd4 {[%emt 0:04:02]} 15. Nxd4 {[%emt 0:00:05]} Bxe2 {[%emt 0:00:10]} 16. Qxe2 {[%emt 0:00:06]} Qe4 {[%emt 0:00:19]} 17. Rh4 {[%emt 0:07:05]} Qg6 {[%emt 0:09:23]} 18. Rd1 {[%emt 0:01:51]} Rfe8 {[%emt 0:01:05]} 19. Qc2 {[%emt 0:05:14]} Ne4 {[%emt 0:06:32]} 20. Kf1 {[%emt 0:02:28]} Rac8 {[%emt 0:00:24]} 21. Qd3 {[%emt 0:03:27]} Rc1 {[%emt 0:00:48]} (21... Qf6 22. Rf4 $11) 22. Qe2 {[%emt 0:03:25]} Rec8 {[%emt 0:10:22]} 23. Kg1 {[%emt 0:01:47]} (23. Qe1 $1 $15 Rxd1 24. Qxd1) 23... Qa6 {[%emt 0:04:57]} (23... Nf6 $1 $17 {And now ...Qb1 would win.} 24. Nb3 R1c2) 24. Qe1 $1 $15 {[%emt 0:05:15]} Qc4 {[%emt 0:04:12]} 25. Rf4 {[%emt 0:05:25]} (25. f3 $15 Rxd1 26. Qxd1) 25... Rxd1 {[%emt 0:02:21]} 26. Qxd1 {[%emt 0:00:04]} Qc1 {[%emt 0:00:04]} 27. Qxc1 {[%emt 0:00:16]} Rxc1+ {[%emt 0:00:03]} 28. Kh2 {[%emt 0:00:02]} Rb1 {[%emt 0:02:11]} 29. b4 {[%emt 0:00:43]} (29. b3 $17) 29... a6 {[%emt 0:03:45]} (29... g5 $1 $19 {[%cal Rg5f4]} 30. Rf5 g4) 30. f3 $15 {[%emt 0:02:32]} Nd6 {[%emt 0:01:45]} 31. Rg4 {[%emt 0:02:43]} f6 {[%emt 0:01:09]} ({Black should play} 31... g6 $17 {White must now prevent ...Rb2.} 32. Ne2 Re1) 32. Ne6 $11 {[%emt 0:00:53]} Kf7 {[%emt 0:00:07]} 33. Nc5 {[%emt 0:00:41] [#]} ({Much weaker is} 33. Nxg7 f5 34. Nxf5 (34. Rg5 $2 h6 $17) 34... Nxf5 $17) (33. Nd8+ $1 $11 {remains equal.} Kf8 34. Ne6+ Kf7 35. Nd8+ (35. Nxg7 $2 f5 $17) 35... Ke8 36. Ne6 Kf7) 33... Re1 {[%emt 0:01:16]} ({Black should try} 33... Nf5 $1 $17 {Hoping for ...g5.} 34. Nxb7 h5) 34. Rd4 $11 {[%emt 0:00:46]} Rxe3 {[%emt 0:00:11]} 35. Rxd5 {[%emt 0:00:05]} Ke7 {[%emt 0:00:03]} 36. a4 {[%emt 0:00:05]} Re1 {[%emt 0:01:12]} 37. g4 {[%emt 0:00:12]} Ra1 {[%emt 0:00:30]} 38. a5 {[%emt 0:07:22]} Rb1 {[%emt 0:00:11]} 39. Rd4 {[%emt 0:00:03]} Rb2 {[%emt 0:00:25]} 40. Na4 {[%emt 0:01:20]} Rc2 {[%emt 0:00:43]} 41. Rd1 {[%emt 0:30:55]} Ke6 {[%emt 0:09:31]} 42. Nc5+ {[%emt 0:00:00]} Ke7 {[%emt 0:00:09]} 43. Re1+ {[%emt 0:00:00]} Kf7 {[%emt 0:01:23]} 44. Ne6 {[%emt 0:00:00]} Rc4 {[%emt 0:01:38]} 45. Nd8+ {[%emt 0:00:00]} Kf8 {[%emt 0:04:59]} 46. Re6 {[%emt 0:00:00]} Rd4 {[%emt 0:03:13]} 47. f4 {[%emt 0:00:00]} Ne4 {[%emt 0:11:30]} 48. Nxb7 {[%emt 0:00:00]} Rxb4 {[%emt 0:00:03]} 49. Nd8 {[%emt 0:00:00]} Nc5 {[%emt 0:00:20]} 50. Rc6 {[%emt 0:00:00]} Ke7 {[%emt 0:00:03]} 51. Rxc5 {[%emt 0:00:00]} Kxd8 {[%emt 0:00:02]} 52. Rc6 {[%emt 0:00:00]} Rxf4 {[%emt 0:00:11]} 53. Kg3 {[%emt 0:00:00]} Ra4 {[%emt 0:01:14]} 54. Rxa6 {[%emt 0:00:00]} Ke7 {[%emt 0:00:14]} 55. Ra7+ {[%emt 0:00:00]} Kf8 {[%emt 0:02:21]} 56. a6 {[%emt 0:00:00]} h6 {[%emt 0:00:19]} 57. Kf3 {[%emt 0:00:00]} Kg8 {[%emt 0:00:02]} 58. Ke3 {[%emt 0:00:00]} Kh7 {[%emt 0:00:02]} 59. Ra8 {[%emt 0:00:00]} Kg6 {[%emt 0:00:57]} 60. Rd8 {[%emt 0:01:26]} (60. Kd3 $11 {keeps the balance.}) 60... Rxa6 $17 {[%emt 0:00:20]} 61. Rd7 {[%emt 0:00:04]} Ra8 {[%emt 0:00:26]} 62. Kf4 {[%emt 0:00:06]} Rf8 {[%emt 0:00:10]} 63. Ra7 {[%emt 0:00:22]} Rf7 {[%emt 0:02:19]} (63... Rd8 $17 64. Rb7 Rd3) 64. Ra4 {[%emt 0:00:01]} (64. Rxf7 $1 $11 Kxf7 65. Kf5) 64... Rb7 {[%emt 0:00:08]} 65. Kg3 {[%emt 0:01:23]} Rb3+ {[%emt 0:00:04]} 66. Kh4 {[%emt 0:00:16]} Rb2 {[%emt 0:00:37]} 67. Kg3 {[%emt 0:00:19]} Rb7 {[%emt 0:00:25]} 68. Kh4 {[%emt 0:00:06]} Rc7 {[%emt 0:00:02]} 69. Rb4 {[%emt 0:00:16]} Rd7 {[%emt 0:01:46]} 70. Ra4 {[%emt 0:00:07]} Kf7 {[%emt 0:00:10]} 71. Rb4 {[%emt 0:00:28]} Rd2 {[%emt 0:01:01]} 72. Rb7+ {[%emt 0:00:17]} Kg6 {[%emt 0:00:28]} 73. Kg3 {[%emt 0:00:03]} Rd5 {[%emt 0:00:04]} 74. Ra7 {[%emt 0:00:25]} Rg5 {[%emt 0:00:36]} 75. Kh3 {[%emt 0:01:16]} h5 {[%emt 0:00:36]} (75... Rc5 $17 76. Kh4 Re5) 76. gxh5+ $11 {[%emt 0:00:06]} Kxh5 {[%emt 0:00:16]} 77. Rb7 {[%emt 0:01:00]} Kh6 {[%emt 0:00:26]} 78. Ra7 {[%emt 0:00:04]} Rb5 {[%emt 0:00:07]} 79. Kh2 {[%emt 0:00:34]} f5 {[%emt 0:00:13]} 80. Ra6+ {[%emt 0:00:21]} Kh5 {[%emt 0:00:07]} 81. Ra7 {[%emt 0:00:11]} g5 {[%emt 0:00:15]} 82. Ra3 {[%emt 0:00:38]} Rb4 {[%emt 0:00:33]} 83. Rc3 {[%emt 0:00:29]} Rf4 {[%emt 0:00:49]} 84. Ra3 {[%emt 0:00:27]} Rf1 {[%emt 0:00:04]} 85. Rh3+ {[%emt 0:00:46]} Kg4 {[%emt 0:00:07]} 86. Ra3 {[%emt 0:00:14]} f4 {[%emt 0:01:32]} 87. Ra5 {[%emt 0:00:36]} Kh4 {[%emt 0:00:20]} 88. Ra4 {[%emt 0:01:00]} Kh5 {[%emt 0:00:58]} 89. Ra5 {[%emt 0:01:57]} Re1 {[%emt 0:00:18]} 90. Ra8 {[%emt 0:02:44]} Rd1 {[%emt 0:01:03]} 91. Rh8+ {[%emt 0:01:57]} Kg6 {[%emt 0:00:19]} 92. Rg8+ {[%emt 0:00:22]} Kf5 {[%emt 0:00:02]} 93. Rf8+ {[%emt 0:00:04]} Kg4 {[%emt 0:01:01]} 94. Ra8 {[%emt 0:00:48]} Rd2 {[%emt 0:00:19]} 95. Ra4 {[%emt 0:01:04]} Rf2 {[%emt 0:01:27]} 96. Ra8 {[%emt 0:01:03]} Rf1 {[%emt 0:00:36]} (96... Re2 $17) 97. Re8 {[%emt 0:02:32]} (97. Ra5 $11) 97... Rc1 {[%emt 0:00:21]} 98. Ra8 {[%emt 0:00:54]} Rc2 {[%emt 0:00:33]} 99. Rf8 {[%emt 0:03:32]} Rf2 {[%emt 0:00:24]} 100. Ra8 $1 {[%emt 0:00:06]} Rb2 {[%emt 0:00:08]} 101. Rf8 {[%emt 0:00:05]} Rb7 {[%emt 0:00:03]} 102. Ra8 {[%emt 0:00:24]} Rh7+ {[%emt 0:00:10]} 103. Kg1 {[%emt 0:00:01]} Kh4 {[%emt 0:00:07]} 104. Ra4 {[%emt 0:01:56]} Kg4 {[%emt 0:00:23]} 105. Ra8 {[%emt 0:00:17]} Rh6 {[%emt 0:00:40]} 106. Rb8 {[%emt 0:00:08]} Ra6 {[%emt 0:00:26]} 107. Kh2 {[%emt 0:00:03]} Rh6+ {[%emt 0:00:29]} 108. Kg1 {[%emt 0:00:02]} Kh4 {[%emt 0:00:08]} 109. Rb4 {[%emt 0:01:05]} Rf6 {[%emt 0:00:31]} (109... Rc6 $17) 110. Kh2 {[%emt 0:00:15] [#]} (110. Kf2 $11) 110... Rf7 {[%emt 0:01:10]} ({Better is} 110... Kh5 $1 $17) 111. g3+ $1 $11 {[%emt 0:00:13]} Kg4 {[%emt 0:00:06]} 112. gxf4 {[%emt 0:00:25]} gxf4 {[%emt 0:00:05]} 113. Kg2 {[%emt 0:00:32]} Rc7 {[%emt 0:00:07]} 114. Rb3 {[%emt 0:00:10]} 1/2-1/2

[Event "FRA-ch Teams Top 16-A 2022"]
[Site "Chartres"]
[Date "2022.06.15"]
[Round "7.12"]
[White "Cantin, Loic"]
[Black "Velten, Paul"]
[Result "0-1"]
[ECO "A49"]
[WhiteElo "2199"]
[BlackElo "2492"]
[Annotator "TA"]
[PlyCount "58"]
[EventDate "2022.06.09"]
[EventType "team-tourn"]
[EventCountry "FRA"]
[SourceTitle "playchess.com"]
[Source "ChessBase"]
[SourceQuality "1"]
[TimeControl "40/5400+30:1800+30"]

{[%evp 10,58,37,18,28,22,30,31,39,12,19,0,56,17,16,18,29,7,10,5,17,12,10,0,48,0,0,0,0,-14,-14,-10,-14,-30,-30,-29,-26,-27,-30,-24,-26,-31,-29,-101,-45,-43,-34,-521,-521,-372,-368]} 1. Nf3 {[%emt 0:00:04]} Nf6 {[%emt 0:00:49]} 2. g3 {[%emt 0:00:22]} g6 {[%emt 0:01:04]} 3. Bg2 {[%emt 0:00:23]} Bg7 {[%emt 0:00:07]} 4. O-O {[%emt 0:00:06]} O-O {[%emt 0:00:05]} 5. d4 {[%emt 0:00:21]} d6 {[%emt 0:00:08]} 6. Re1 {[%emt 0:00:50]} Bg4 {[%emt 0:07:59] A49: 1 d4 Nf6 2 Nf3 g6 3 g3: Anti-King's Indian systems.} 7. h3 {[%emt 0:04:56]} Bxf3 {[%emt 0:00:18]} 8. Bxf3 {[%emt 0:01:04]} c6 {[%emt 0:00:13] White is slightly better.} 9. c3 {[%emt 0:06:50]} Nbd7 {[%emt 0:00:48] [#]} 10. e4 $146 {[%emt 0:01:53]} ({Predecessor:} 10. Qb3 Qc7 11. Bg5 e5 12. dxe5 dxe5 13. Nd2 Rfe8 14. e4 Nc5 15. Qc4 Ne6 16. Bxf6 Bxf6 {½-½ (33) Blaszczyk,P (2000)-Krzesaj,R (2130) Krynica 2003}) 10... Qc7 {[%emt 0:03:52]} (10... e5 $11) 11. Bg2 {[%emt 0:08:07]} e5 {[%emt 0:00:36]} 12. dxe5 {[%emt 0:14:58]} dxe5 {[%emt 0:00:45]} 13. Qe2 {[%emt 0:03:23]} Rfd8 {[%emt 0:00:51]} 14. Be3 {[%emt 0:03:13]} Bf8 {[%emt 0:00:31][%cal Bg7f8,Bf8c5,Bc5b6][%mdl 32]} 15. Nd2 {[%emt 0:01:38]} Bc5 {[%emt 0:02:29]} 16. Bg5 {[%emt 0:01:32]} b5 {[%emt 0:00:56]} (16... a5 $11) 17. h4 {[%emt 0:05:43]} (17. a4 $14) 17... Kg7 $11 {[%emt 0:00:58]} 18. Nb3 {[%emt 0:01:15]} Bb6 {[%emt 0:02:14]} 19. Rad1 {[%emt 0:03:07]} h6 {[%emt 0:00:39]} 20. Bc1 {[%emt 0:00:28]} a5 {[%emt 0:00:48][%cal Ba7a5,Ba5a4][%mdl 32]} 21. Qf3 {[%emt 0:12:58][%cal Oa2a4]} ({Wrong is} 21. Qd2 $2 Ng4 22. Rf1 a4 $19) 21... a4 {[%emt 0:01:09]} 22. Na1 {[%emt 0:00:37]} Nc5 {[%emt 0:05:15][%cal Oa4a3] ...a3! is the strong threat.} 23. Qe2 {[%emt 0:09:53]} ({Don't go for} 23. Bxh6+ $2 Kxh6 24. Qxf6 Nd3 25. Rxd3 Rxd3 $19) 23... Rd7 {[%emt 0:01:47]} 24. Rxd7 {[%emt 0:01:25]} Qxd7 {[%emt 0:00:19]} 25. Rd1 {[%emt 0:00:44] Against Nd3} Qe6 {[%emt 0:00:06]} 26. a3 {[%emt 0:02:08] [#]} (26. Nc2 $1 $11 {keeps the balance.}) 26... Rb8 {[%emt 0:02:40]} (26... Qc4 $1 $17 {[%cal Rc4e2]} 27. Qf3 Ncxe4) 27. Nc2 $15 {[%emt 0:01:25]} Qc4 {[%emt 0:00:38]} 28. Qd2 {[%emt 0:03:12][%mdl 8192]} (28. Qe1 $15) 28... Ncxe4 $19 {[%emt 0:01:04] Active counter play! Pair of Knights!} 29. Qxh6+ {[%emt 0:00:17]} Kg8 {[%emt 0:00:04] Weighted Error Value: White=0.42/Black=0.10 (very precise)} 0-1

[Event "FRA-ch Teams Top 16-A 2022"]
[Site "Chartres"]
[Date "2022.06.15"]
[Round "7.13"]
[White "David, Alberto"]
[Black "Eden, James"]
[Result "1-0"]
[ECO "D15"]
[WhiteElo "2520"]
[BlackElo "2273"]
[Annotator "TA"]
[PlyCount "144"]
[EventDate "2022.06.09"]
[EventType "team-tourn"]
[EventCountry "FRA"]
[SourceTitle "playchess.com"]
[Source "ChessBase"]
[SourceQuality "1"]
[TimeControl "40/5400+30:1800+30"]

{[%evp 10,144,33,18,27,29,55,25,39,42,33,24,35,20,152,148,148,149,149,149,136,138,149,175,152,139,150,106,127,115,114,108,109,114,117,97,141,131,157,62,62,81,70,68,62,66,54,21,23,26,30,11,20,23,25,26,28,33,72,71,77,76,63,63,63,60,75,68,74,65,72,61,91,29,53,19,16,45,119,8,27,13,17,8,294,327,331,331,331,331,330,327,250,327,289,289,283,272,253,246,641,401,422,415,408,386,1004,576,497,323,985,690,502,0,868,896,4833,531,29974,29975,29975,29976,29982,29983,29983,29984,29984,29985,29985,29986,29985,29976,29974,29972,29969,5562,5073]} 1. d4 {[%emt 0:00:22]} d5 {[%emt 0:00:33]} 2. c4 {[%emt 0:00:09]} c6 {[%emt 0:00:16]} 3. Nf3 {[%emt 0:00:27]} Nf6 {[%emt 0:00:12]} 4. e3 {[%emt 0:00:36]} Bf5 {[%emt 0:01:44]} 5. Nc3 {[%emt 0:00:20]} a6 {[%emt 0:01:47]} 6. Qb3 {[%emt 0:01:45]} Ra7 {[%emt 0:00:40] D15: Slav Defence: 4 Nc3 a6 and gambit lines after 4 Nc3 dxc4.} 7. Nh4 {[%emt 0:03:03]} Be4 {[%emt 0:10:40]} 8. f3 {[%emt 0:23:16]} dxc4 {[%emt 0:01:25] White has an edge.} 9. Qxc4 {[%emt 0:02:54]} Bd5 {[%emt 0:04:21]} 10. Qe2 {[%emt 0:02:42]} b5 $1 {[%emt 0:02:45][%cal Oc6c5]} 11. Qf2 $36 {[%emt 0:03:20][%mdl 2048] [#] Black is under pressure.} Qa5 $146 {[%emt 0:20:54] [#]} (11... c5 $11 {keeps the balance.}) ({Predecessor:} 11... e6 12. e4 Bb4 13. a3 Bxc3+ 14. bxc3 Bb3 15. Rb1 Ba4 16. Be2 O-O 17. O-O Rd7 {1-0 (33) Khismatullin,D (2681)-Popov,V (2546) St Petersburg 2014}) 12. e4 $1 $16 {[%emt 0:05:43]} b4 {[%emt 0:03:46]} 13. Nb1 {[%emt 0:03:11][%cal Bc3b1,Bb1d2,Bd2c4][%mdl 32]} ({Much less strong is} 13. Nxd5 cxd5 14. Bd3 b3+ 15. Bd2 Qb6 $16) (13. exd5 bxc3 14. b4 Qb6 $17) 13... Bb3 {[%emt 0:09:05]} 14. Nd2 {[%emt 0:02:24]} Ba4 {[%emt 0:00:17]} 15. Nc4 {[%emt 0:05:29]} Qd8 {[%emt 0:05:47]} 16. Be3 {[%emt 0:03:47]} Rb7 {[%emt 0:00:53]} 17. Be2 {[%emt 0:06:36]} e6 {[%emt 0:01:03]} 18. O-O {[%emt 0:01:03]} Be7 {[%emt 0:00:30][%cal Of6d5]} 19. g3 {[%emt 0:00:05]} O-O {[%emt 0:00:47]} 20. Ng2 {[%emt 0:00:52]} Nbd7 {[%emt 0:03:35]} 21. Rac1 {[%emt 0:01:47]} Bb5 {[%emt 0:07:35][%cal Oc6c5]} 22. Rfd1 {[%emt 0:01:18]} h6 {[%emt 0:01:01]} 23. Nf4 {[%emt 0:01:05]} Ne8 {[%emt 0:05:48]} 24. d5 {[%emt 0:03:26]} ({Better is} 24. Bd3 $16) 24... cxd5 $14 {[%emt 0:02:10]} 25. exd5 {[%emt 0:01:02]} e5 {[%emt 0:00:46] [#]} 26. Ne6 {[%emt 0:00:50] White is more active.} fxe6 {[%emt 0:00:52]} 27. dxe6 {[%emt 0:00:04]} Nef6 {[%emt 0:01:40][%cal Of6g4]} (27... Bxc4 $2 28. Bxc4 (28. Rxc4 Nd6 $16) 28... Kh8 29. Bxa6 $18 (29. Rxd7 Rxd7 30. exd7 Qxd7 $16)) 28. Qg2 {[%emt 0:03:08]} Qb8 {[%emt 0:02:30]} 29. exd7 {[%emt 0:00:21]} Rxd7 {[%emt 0:00:15]} 30. Qh3 {[%emt 0:03:57]} Rxd1+ {[%emt 0:01:21]} 31. Rxd1 {[%emt 0:01:28]} Qc8 {[%emt 0:01:06] Inhibits Qe6+.} 32. Qxc8 {[%emt 0:00:31]} Rxc8 {[%emt 0:00:06]} 33. b3 {[%emt 0:00:08]} Rd8 {[%emt 0:02:56]} 34. Rxd8+ {[%emt 0:00:21]} Bxd8 {[%emt 0:00:09]} 35. Kf2 {[%emt 0:02:03]} Bc7 {[%emt 0:03:22]} 36. Bc5 {[%emt 0:03:54]} Nd5 {[%emt 0:02:17]} 37. Ne3 {[%emt 0:00:10]} Nc3 {[%emt 0:00:26][%csl LRa2,LRe2]} 38. Bxb5 {[%emt 0:00:29]} axb5 {[%emt 0:00:15]} 39. Bxb4 {[%emt 0:00:09]} Nxa2 $16 {[%emt 0:00:20][%mdl 4096] Endgame KBN-KBN} 40. Bd2 {[%emt 0:00:15]} Bd6 {[%emt 0:01:05]} 41. Ke2 {[%emt 0:37:52]} (41. Nd5 $16) 41... Kf7 $11 {[%emt 0:31:32]} 42. Kd3 {[%emt 0:01:03]} (42. Nf5 $5 {[%cal Rf5d6]} Bf8 43. Kd3 $14) 42... Ke6 {[%emt 0:00:00]} 43. Ke4 {[%emt 0:00:00]} g6 {[%emt 0:00:00]} ({Black should try} 43... Bb4 $14 44. Bxb4 Nxb4) 44. Ng2 {[%emt 0:00:00]} (44. Nd5 $16) 44... h5 {[%emt 0:00:00]} 45. Nh4 {[%emt 0:00:00]} Kf6 {[%emt 0:00:00]} 46. g4 {[%emt 0:00:00][%cal Bg3g4,Bg4g5][%mdl 32]} Bb4 $2 {[%emt 0:00:00][%mdl 8192] Black is now going downhill.} (46... Ba3 $11 {and Black is okay.}) 47. g5+ $18 {[%emt 0:00:00]} Kf7 {[%emt 0:00:00]} 48. Bxb4 {[%emt 0:00:00]} Nxb4 {[%emt 0:00:00]} 49. Kxe5 {[%emt 0:00:00] aiming for Kd4. KN-KN} Nd3+ {[%emt 0:00:00]} 50. Kd4 {[%emt 0:00:00]} Nf4 {[%emt 0:00:00]} 51. Kc5 {[%emt 0:00:00]} Ne6+ {[%emt 0:00:00]} 52. Kxb5 {[%emt 0:00:00]} Nxg5 {[%emt 0:00:00]} 53. b4 {[%emt 0:00:00][%cal Bb3b4,Bb4b5,Bb5b6][%mdl 32]} Ne6 {[%emt 0:00:00]} 54. Kc4 {[%emt 0:01:55] b5 is the strong threat.} Kf6 $2 {[%emt 0:00:00]} (54... Nf4 55. Kd4 g5) 55. b5 {[%emt 0:08:07]} g5 {[%emt 0:00:21] [#]} 56. b6 $1 {[%emt 0:00:36] Strongly threatening b7.} Nd8 {[%emt 0:00:14]} 57. Ng2 {[%emt 0:00:11] And now Kd5 would win.} Kf5 $2 {[%emt 0:02:28]} (57... Ke5 58. Kb5 Kd6) 58. h3 {[%emt 0:00:55]} Ke5 {[%emt 0:02:42]} 59. Kc5 {[%emt 0:00:16]} Ke6 $2 {[%emt 0:01:41]} (59... h4 60. Kb5 Kd5 61. Ne3+ Ke6) 60. Kb5 {[%emt 0:01:27]} Ke5 {[%emt 0:02:16]} 61. Kc5 {[%emt 0:03:03]} (61. Ne3 $142 Kf4 62. Nc2) 61... Ke6 $1 {[%emt 0:00:51]} 62. Ne1 {[%emt 0:00:13]} Kf5 {[%emt 0:01:36]} 63. Nd3 {[%emt 0:00:10]} (63. Kd6 $142 Kf6 64. Kd7) 63... g4 {[%emt 0:00:21]} 64. hxg4+ {[%emt 0:00:14]} hxg4 {[%emt 0:00:06]} 65. fxg4+ {[%emt 0:00:03]} Kxg4 {[%emt 0:00:07]} 66. Kd6 {[%emt 0:00:12]} Nb7+ {[%emt 0:00:59]} 67. Kc7 {[%emt 0:00:09]} Na5 {[%emt 0:00:06]} 68. Ne5+ {[%emt 0:00:06]} Kf5 {[%emt 0:00:13]} 69. Nc6 {[%emt 0:01:05]} Nb3 {[%emt 0:00:19] [#]} 70. Nd4+ $1 {[%emt 0:00:11][%mdl 512]} Nxd4 {[%emt 0:00:24]} 71. b7 {[%emt 0:00:04]} Ne6+ {[%emt 0:00:32]} 72. Kc8 {[%emt 0:00:31]} (72. Kd6 $142 Nf4 73. b8=Q Ke4 74. Qb4+ Ke3 75. Qc3+ Ke4 76. Qe5+ Kf3 77. Qd4) 72... Ke4 {[%emt 0:00:15] Weighted Error Value: White=0.24 (precise) /Black=0.27 (precise)} 1-0